bitfinex-derivatives/quotes_SOLF0:USTF0_20220108
["timestamp","ask_amount","ask_price","bid_price","bid_amount"]
[1641662468408,5.72086565,139.84,139.79,65.7316]
[1641662468610,5.72086565,139.84,139.77,31.66479]
[1641662468809,5.72086565,139.84,139.77,27.66479]
[1641662469011,5.72209172,139.81,139.75,69.4088]
[1641662469513,5.72209172,139.81,139.74,60.00395047]
[1641662469514,5.72331685,139.78,139.76,16.47046893]
[1641662470111,5.72331685,139.78,139.76,10.74635384]
[1641662470410,5.72331685,139.78,139.76,3.74635384]
[1641662470611,6.86871077,139.77,139.74,60.00395047]
[1641662470814,1.788,139.76,139.69,69.7273]
[1641662471013,6.86871077,139.77,139.69,73.7273]
[1641662471215,27.66479,139.75,139.69,69.7273]
[1641662471415,27.66479,139.75,139.69,73.7273]
[1641662471618,27.66479,139.75,139.69,69.7273]
[1641662472821,34.82580543,139.75,139.65,128.26235047]
[1641662473018,14.03285441,139.73,139.65,60.00395047]
[1641662473219,27.66479,139.66,139.65,60.00395047]
[1641662473720,27.66479,139.68,139.65,60.00395047]
[1641662473920,27.66479,139.68,139.58,195.55925047]
[1641662474321,27.66479,139.68,139.62,4.0]
[1641662474922,8.95255417,139.72,139.65,4.0]
[1641662475123,8.95255417,139.72,139.58,191.55925047]
[1641662475124,1.79,139.72,139.68,4.0]
[1641662475322,34.53560323,139.73,139.66,4.0]
[1641662475523,5.72684015,139.7,139.63,31.66479]
[1641662475822,5.72684015,139.7,139.69,4.0]
[1641662476024,1.789,139.76,139.69,8.0]
[1641662476223,8.24143404,139.79,139.69,4.0]
[1641662476424,5.72402944,139.77,139.72,4.0]
[1641662476822,5.72527664,139.74,139.7,4.0]
[1641662477222,5.72527664,139.74,139.72,4.0]
[1641662477422,1.789,139.74,139.72,4.0]
[1641662477623,6.86864553,139.77,139.68,31.66479]
[1641662477822,6.86864553,139.77,139.73,4.0]
[1641662478222,6.86864553,139.77,139.71,4.0]
[1641662478423,1.789,139.8,139.69,7.15640319]
[1641662478624,1.789,139.8,139.71,4.0]
[1641662479426,27.66479,139.79,139.68,59.32958]
[1641662479626,36.32050568,139.81,139.74,4.0]
[1641662479825,1.788,139.82,139.76,4.0]
[1641662480025,1.788,139.85,139.76,4.0]
[1641662480225,1.788,139.86,139.76,4.0]
[1641662480425,1.788,139.86,139.73,133.2834]
[1641662480625,1.788,139.86,139.73,67.8333]
[1641662480825,6.86601828,139.82,139.73,67.8333]
[1641662481027,1.788,139.81,139.73,67.8333]
[1641662481228,6.86743145,139.8,139.73,67.8333]
[1641662481426,29.45279,139.79,139.73,67.8333]
[1641662481626,29.45279,139.79,139.74,2.94350904]
[1641662483626,5.72440128,139.76,139.74,2.94350904]
[1641662483829,5.72440128,139.76,139.72,4.0]
[1641662484428,1.788,139.79,139.75,4.0]
[1641662484627,6.86743145,139.8,139.77,4.0]
[1641662484829,6.86743145,139.8,139.72,4.0]
[1641662485029,6.86743145,139.8,139.77,4.0]
[1641662485229,6.86743145,139.8,139.73,4.0]
[1641662485429,6.86743145,139.8,139.77,4.0]
[1641662485629,6.86743145,139.8,139.76,27.66479]
[1641662486030,6.86743145,139.8,139.77,4.0]
[1641662486332,6.86743145,139.8,139.76,27.66479]
[1641662486529,6.86743145,139.8,139.74,27.66479]
[1641662486830,6.86743145,139.8,139.75,4.0]
[1641662487230,6.86743145,139.8,139.73,15.06562564]
[1641662487431,5.72341341,139.78,139.73,15.06562564]
[1641662488132,5.72341341,139.78,139.73,19.06562564]
[1641662488331,5.72341341,139.78,139.73,6.95111414]
[1641662489332,5.72341341,139.78,139.74,2.95111414]
[1641662490136,5.72477578,139.75,139.74,2.95111414]
[1641662490735,11.44959651,139.75,139.74,2.95111414]
[1641662491136,11.44959651,139.75,139.72,26.31211782]
[1641662491338,7.15947736,139.78,139.75,0.74541051]
[1641662491538,27.66479,139.76,139.73,2.95111414]
[1641662492238,7.16101543,139.75,139.73,2.95111414]
[1641662492438,1.789,139.74,139.73,2.95111414]
[1641662492637,1.789,139.74,139.69,29.26323196]
[1641662492839,7.16101543,139.75,139.69,29.26323196]
[1641662492840,8.95001543,139.75,139.69,29.26323196]
[1641662493742,8.95001543,139.75,139.68,18.01673978]
[1641662494043,8.95001543,139.75,139.7,4.0]
[1641662494242,1.789,139.75,139.7,4.0]
[1641662494440,55.32958,139.76,139.68,18.01673978]
[1641662494841,55.32958,139.76,139.7,4.0]
[1641662495643,55.32958,139.76,139.69,15.06562564]
[1641662495843,1.789,139.75,139.69,15.06562564]
[1641662496644,6.87024587,139.74,139.69,15.06562564]
[1641662496844,5.72646217,139.71,139.69,15.06562564]
[1641662497046,5.72646217,139.71,139.68,18.01673978]
[1641662497450,5.72646217,139.71,139.69,4.0]
[1641662497648,5.72646217,139.71,139.68,18.01673978]
[1641662497849,5.72646217,139.71,139.68,22.01673978]
[1641662498447,5.72646217,139.71,139.69,6.95111414]
[1641662498649,6.87024587,139.74,139.7,4.0]
[1641662499252,6.87024587,139.74,139.71,2.95111414]
[1641662500253,6.87024587,139.74,139.71,18.01673978]
[1641662500852,5.72386598,139.77,139.71,22.01673978]
[1641662501453,5.72386598,139.77,139.71,15.06562564]
[1641662502154,5.72386598,139.77,139.72,4.0]
[1641662502555,5.72386598,139.77,139.72,19.06562564]
[1641662503256,5.72502735,139.74,139.73,2.95111414]
[1641662503656,6.86894814,139.76,139.72,12.29051959]
[1641662503856,1.789,139.75,139.72,12.29051959]
[1641662504056,34.53373814,139.76,139.7,11.24649218]
[1641662504258,34.53373814,139.76,139.7,15.24649218]
[1641662504558,6.86894814,139.76,139.7,11.24649218]
[1641662505158,6.86894814,139.76,139.71,4.0]
[1641662505460,6.86894814,139.76,139.72,4.0]
[1641662505859,6.86894814,139.76,139.69,11.24649218]
[1641662506064,7.15973366,139.78,139.69,11.24649218]
[1641662506664,7.15973366,139.78,139.72,4.0]
[1641662507163,6.86751528,139.79,139.72,4.0]
[1641662507562,6.86762055,139.79,139.72,4.0]
[1641662508364,6.86762055,139.79,139.71,11.24649218]
[1641662508663,6.86762055,139.79,139.73,4.0]
[1641662508964,6.86762055,139.79,139.71,11.24649218]
[1641662509163,5.72446606,139.76,139.71,11.24649218]
[1641662509363,5.72446606,139.76,139.75,4.0]
[1641662510063,6.86762055,139.79,139.75,4.0]
[1641662510265,6.86762055,139.79,139.78,4.0]
[1641662510463,5.00273422,139.82,139.78,4.0]
[1641662510664,5.00273422,139.82,139.74,31.66479]
[1641662510864,5.00273422,139.82,139.74,27.66479]
[1641662511064,5.00273422,139.82,139.8,4.0]
[1641662511264,27.66479,139.83,139.8,4.0]
[1641662511463,27.66479,139.83,139.75,15.24649218]
[1641662511664,27.66479,139.83,139.8,4.0]
[1641662512565,8.23840532,139.84,139.8,4.0]
[1641662512968,8.23840532,139.84,139.82,4.0]
[1641662513468,8.23840532,139.84,139.81,4.0]
[1641662513669,8.23840532,139.84,139.77,4.0]
[1641662513969,8.23840532,139.84,139.77,15.24649218]
[1641662514169,8.23840532,139.84,139.78,27.66479]
[1641662514669,8.23840532,139.84,139.83,4.0]
[1641662514876,11.86723138,139.86,139.83,4.0]
[1641662515072,11.86723138,139.86,139.84,4.0]
[1641662515573,6.86449716,139.86,139.8,4.0]
[1641662516172,5.00273422,139.88,139.85,4.0]
[1641662516373,5.00273422,139.88,139.82,4.0]
[1641662516573,5.72016609,139.86,139.79,15.27601245]
[1641662516773,5.72016609,139.86,139.79,11.27601245]
[1641662516974,5.72016609,139.86,139.79,15.27601245]
[1641662517273,5.72137433,139.83,139.79,11.27601245]
[1641662517475,5.72137433,139.83,139.77,11.27601245]
[1641662517673,5.72258595,139.8,139.77,11.27601245]
[1641662518073,27.66479,139.78,139.77,5.55219557]
[1641662518273,27.66479,139.78,139.76,39.72719729]
[1641662518775,27.66479,139.78,139.75,4.0]
[1641662520674,27.66479,139.78,139.76,4.0]
[1641662521076,27.66479,139.78,139.72,69.1624]
[1641662521275,7.16127184,139.75,139.69,4.0]
[1641662521475,4.0,139.72,139.65,69.0845]
[1641662521679,4.0,139.72,139.63,56.00395047]
[1641662521876,5.789,139.71,139.63,56.00395047]
[1641662522089,27.66479,139.69,139.61,67.9457]
[1641662523077,27.66479,139.69,139.6,139.5001]
[1641662523478,27.66479,139.69,139.61,4.0]
[1641662523777,27.66479,139.69,139.6,139.5001]
[1641662523778,33.39200741,139.69,139.6,139.5001]
[1641662525281,33.39200741,139.69,139.61,4.0]
[1641662526080,33.39200741,139.69,139.62,4.0]
[1641662526280,5.72721741,139.69,139.62,4.0]
[1641662527483,5.72721741,139.69,139.61,4.0]
[1641662528281,5.72721741,139.69,139.62,4.0]
[1641662528683,11.45452224,139.69,139.62,4.0]
[1641662529284,11.45452224,139.69,139.61,4.0]
[1641662530788,5.72784069,139.67,139.61,4.0]
[1641662531790,5.72721741,139.69,139.61,4.0]
[1641662532191,9.72721741,139.69,139.6,65.5028]
[1641662532390,9.72721741,139.69,139.59,27.66479]
[1641662532391,10.8738538,139.66,139.57,135.7731]
[1641662532591,1.79,139.65,139.57,206.6824]
[1641662532791,10.87523931,139.64,139.55,60.42903999]
[1641662532991,6.87523931,139.64,139.55,60.42903999]
[1641662533192,6.87672753,139.61,139.53,64.42903999]
[1641662533392,1.791,139.6,139.53,60.42903999]
[1641662533591,4.0,139.59,139.53,60.42903999]
[1641662533791,4.0,139.58,139.53,53.42903999]
[1641662533993,12.96125777,139.57,139.53,53.42903999]
[1641662534193,55.32958,139.54,139.53,68.51688218]
[1641662534393,57.12058,139.54,139.53,15.08784219]
[1641662534594,64.00076397,139.54,139.46,53.42903999]
[1641662534792,68.00076397,139.54,139.46,53.42903999]
[1641662535195,6.88180327,139.5,139.46,53.42903999]
[1641662535393,1.792,139.49,139.46,53.42903999]
[1641662535594,1.792,139.49,139.41,98.38893606]
[1641662535795,7.17591762,139.46,139.36,98.38893606]
[1641662536194,27.66479,139.44,139.37,27.66479]
[1641662536993,5.73776028,139.43,139.37,27.66479]
[1641662537393,9.73776028,139.43,139.37,27.66479]
[1641662537596,5.73776028,139.43,139.37,27.66479]
[1641662538399,27.66479,139.46,139.37,27.66479]
[1641662538796,19.51517136,139.46,139.37,27.66479]
[1641662538994,6.88322677,139.47,139.39,4.0]
[1641662539395,1.793,139.5,139.41,4.0]
[1641662539595,1.792,139.53,139.41,4.0]
[1641662539797,8.25501199,139.56,139.46,4.0]
[1641662539996,8.25501199,139.56,139.5,4.0]
[1641662540197,8.25501199,139.56,139.51,4.0]
[1641662540797,5.791,139.6,139.5,27.66479]
[1641662541097,5.73199264,139.57,139.5,27.66479]
[1641662541698,5.73206613,139.57,139.5,27.66479]
[1641662542499,1.791,139.6,139.5,27.66479]
[1641662542703,5.73094999,139.6,139.5,27.66479]
[1641662543102,5.73094999,139.6,139.5,31.66479]
[1641662544103,5.73094999,139.6,139.5,27.66479]
[1641662545103,1.791,139.59,139.51,4.0]
[1641662545303,1.791,139.59,139.52,4.0]
[1641662545504,5.73094999,139.6,139.55,4.0]
[1641662545703,5.72906578,139.64,139.55,4.0]
[1641662545904,5.72906578,139.64,139.56,4.0]
[1641662546205,1.79,139.68,139.6,27.66479]
[1641662547103,1.79,139.69,139.6,27.66479]
[1641662547402,5.72784764,139.67,139.6,27.66479]
[1641662549203,11.45598934,139.67,139.6,27.66479]
[1641662550006,5.72904685,139.64,139.6,27.66479]
[1641662550706,1.79,139.66,139.6,27.66479]
[1641662550906,5.72784764,139.67,139.6,31.66479]
[1641662551109,5.72784764,139.67,139.6,27.66479]
[1641662551707,11.45580021,139.67,139.6,27.66479]
[1641662553107,5.72795257,139.67,139.6,27.66479]
[1641662553507,5.72795257,139.67,139.6,31.66479]
[1641662553707,5.72795257,139.67,139.6,27.66479]
[1641662554308,5.72872573,139.65,139.6,27.66479]
[1641662559411,5.72760087,139.68,139.6,27.66479]
[1641662562713,9.72760087,139.68,139.6,27.66479]
[1641662562914,9.72842449,139.66,139.55,69.4174]
[1641662563113,5.7300511,139.62,139.55,69.4174]
[1641662563313,5.7300511,139.62,139.54,70.4551]
[1641662563712,5.7300511,139.62,139.54,74.4551]
[1641662563913,5.7300511,139.62,139.54,4.0]
[1641662564113,5.7300511,139.62,139.52,64.63]
[1641662564114,5.7300511,139.62,139.53,4.0]
[1641662564312,5.7300511,139.62,139.57,27.66479]
[1641662568618,5.73112799,139.59,139.57,27.66479]
[1641662569818,8.6653701,139.63,139.57,27.66479]
[1641662570018,6.8753701,139.63,139.57,27.66479]
[1641662570221,5.73045275,139.61,139.57,27.66479]
[1641662570520,5.73045275,139.61,139.55,27.66479]
[1641662570720,5.73127361,139.59,139.54,15.09004739]
[1641662570920,9.73127361,139.59,139.54,15.09004739]
[1641662571124,5.7325602,139.56,139.53,15.09004739]
[1641662572121,5.7325602,139.56,139.48,70.1883]
[1641662572122,5.7325602,139.56,139.49,26.02996454]
[1641662572522,5.7325602,139.56,139.5,27.66479]
[1641662572719,5.7325602,139.56,139.51,4.0]
[1641662572920,5.7325602,139.56,139.5,27.66479]
[1641662573923,5.7325602,139.56,139.5,31.66479]
[1641662574122,6.87843963,139.57,139.5,27.66479]
[1641662574524,6.87843963,139.57,139.5,53.69475454]
[1641662576025,6.87843963,139.57,139.51,15.09004739]
[1641662576225,6.87843963,139.57,139.52,4.0]
[1641662576426,6.87843963,139.57,139.51,19.09004739]
[1641662576626,6.87843963,139.57,139.54,27.66479]
[1641662578935,6.87843963,139.57,139.52,15.09004739]
[1641662579136,5.73295439,139.55,139.52,15.09004739]
[1641662579536,5.73295439,139.55,139.5,15.09004739]
[1641662580036,5.73295439,139.55,139.5,19.09004739]
[1641662580236,6.87805541,139.58,139.5,15.09004739]
[1641662580437,11.88078963,139.58,139.49,4.0]
[1641662580637,11.88078963,139.58,139.51,27.66479]
[1641662580834,5.73257052,139.56,139.51,27.66479]
[1641662581234,5.73257052,139.56,139.49,27.66479]
[1641662581437,5.73340874,139.54,139.49,42.75483739]
[1641662581637,5.73340874,139.54,139.49,15.09004739]
[1641662582238,5.73419313,139.52,139.49,15.09004739]
[1641662582641,5.73419313,139.52,139.48,15.09004739]
[1641662582838,5.7349869,139.5,139.48,15.09004739]
[1641662583050,7.5269869,139.5,139.45,39.82098875]
[1641662583239,6.88283455,139.48,139.45,34.08398094]
[1641662583638,4.0,139.47,139.45,34.08398094]
[1641662583838,1.792,139.46,139.4,59.65624054]
[1641662584639,33.45679,139.46,139.38,59.65624054]
[1641662584842,4.0,139.45,139.38,59.65624054]
[1641662585741,31.66479,139.46,139.38,59.65624054]
[1641662586040,27.66479,139.46,139.37,69.1261]
[1641662586240,1.793,139.45,139.37,69.1261]
[1641662586641,1.793,139.45,139.4,27.66479]
[1641662586840,5.00273422,139.47,139.4,31.66479]
[1641662587040,1.792,139.52,139.4,27.66479]
[1641662587240,1.792,139.54,139.44,4.0]
[1641662587442,7.17102904,139.56,139.44,4.0]
[1641662587840,11.17102904,139.56,139.43,4.0]
[1641662588040,27.17102904,139.56,139.41,74.33834905]
[1641662588242,4.0,139.51,139.41,72.54634905]
[1641662588440,5.792,139.5,139.41,72.54634905]
[1641662588641,5.73583534,139.48,139.42,2.28744905]
[1641662589242,1.792,139.5,139.42,2.28744905]
[1641662589442,27.66479,139.51,139.4,31.66479]
[1641662590043,27.66479,139.51,139.4,27.66479]
[1641662590245,4.0,139.5,139.41,2.24221454]
[1641662590544,7.52741609,139.49,139.41,2.24221454]
[1641662591644,11.52741609,139.49,139.41,2.24221454]
[1641662591844,9.73541609,139.49,139.41,2.24221454]
[1641662592047,9.73541609,139.49,139.4,27.66479]
[1641662592246,5.73632504,139.47,139.37,76.29867208]
[1641662592547,5.73837058,139.42,139.36,27.66479]
[1641662592747,5.73916008,139.4,139.36,27.66479]
[1641662592946,5.73916008,139.4,139.38,2.24412806]
[1641662593548,5.73747317,139.44,139.39,4.0]
[1641662593750,5.73570165,139.48,139.37,4.0]
[1641662593950,9.73570165,139.48,139.36,27.66479]
[1641662594348,5.73704226,139.45,139.36,27.66479]
[1641662594749,5.73704226,139.45,139.4,27.66479]
[1641662595549,1.793,139.48,139.4,27.66479]
[1641662595550,1.793,139.48,139.4,31.66479]
[1641662595749,6.88268414,139.49,139.41,4.0]
[1641662595949,8.25694796,139.52,139.42,4.0]
[1641662596151,8.25694796,139.52,139.45,7.16871572]
[1641662596649,5.73254067,139.56,139.48,27.66479]
[1641662598651,5.73254067,139.56,139.54,27.66479]
[1641662599952,5.73254067,139.56,139.54,19.52118369]
[1641662601552,5.73367364,139.53,139.43,1.791]
[1641662601752,5.73572868,139.48,139.42,70.2955]
[1641662601950,5.73572868,139.48,139.38,10.64]
[1641662602152,5.73572868,139.48,139.41,4.0]
[1641662602652,5.73572868,139.48,139.39,7.17180048]
[1641662602851,5.73583318,139.48,139.42,2.36228952]
[1641662604155,5.73583318,139.48,139.41,2.36228952]
[1641662604957,5.73583318,139.48,139.4,31.66479]
[1641662605660,5.73583318,139.48,139.4,38.83607617]
[1641662605860,5.73583318,139.48,139.41,6.36326351]
[1641662606258,5.73583318,139.48,139.44,4.0]
[1641662606459,6.88122863,139.51,139.44,4.0]
[1641662606658,6.88122863,139.51,139.42,4.0]
[1641662606859,6.88122863,139.51,139.44,27.66479]
[1641662607458,6.88122863,139.51,139.45,4.0]
[1641662607658,6.88122863,139.51,139.44,27.66479]
[1641662607858,6.88122863,139.51,139.45,2.36326351]
[1641662608662,4.0,139.5,139.41,67.6145]
[1641662608863,5.73600153,139.47,139.41,67.6145]
[1641662609064,5.73600153,139.47,139.4,27.66479]
[1641662609461,5.73600153,139.47,139.38,66.6873]
[1641662609664,7.52900153,139.47,139.38,66.6873]
[1641662610865,5.73600153,139.47,139.41,27.66479]
[1641662611769,29.45779,139.5,139.41,31.66479]
[1641662611962,27.66479,139.5,139.41,31.66479]
[1641662612163,6.88122863,139.51,139.41,31.66479]
[1641662612363,6.88122863,139.51,139.42,2.36730704]
[1641662612963,6.88122863,139.51,139.44,27.66479]
[1641662613569,6.88122863,139.51,139.45,4.0]
[1641662613766,7.52518012,139.54,139.48,4.0]
[1641662613968,15.19178429,139.54,139.5,4.0]
[1641662614167,5.87478429,139.54,139.48,7.16717434]
[1641662614566,40.44812055,139.57,139.49,4.0]
[1641662614766,5.73068891,139.6,139.51,2.44922793]
[1641662614968,5.73068891,139.6,139.51,30.11401793]
[1641662615768,2.61077743,139.59,139.51,27.66479]
[1641662616569,2.61077743,139.59,139.53,4.0]
[1641662616768,7.743e-05,139.59,139.54,4.0]
[1641662616968,5.72926117,139.64,139.58,27.66479]
[1641662617370,5.72926117,139.64,139.57,27.66479]
[1641662617972,1.79,139.63,139.57,27.66479]
[1641662618575,5.72926117,139.64,139.57,27.66479]
[1641662619675,9.72926117,139.64,139.57,27.66479]
[1641662619875,5.73083102,139.6,139.54,27.66479]
[1641662620678,12.89954674,139.6,139.54,27.66479]
[1641662620975,5.73083102,139.6,139.54,27.66479]
[1641662621176,7.52183102,139.6,139.54,27.66479]
[1641662621577,5.73083102,139.6,139.54,27.66479]
[1641662623279,1.791,139.62,139.54,31.66479]
[1641662623478,27.66479,139.63,139.54,27.66479]
[1641662623780,4.0,139.62,139.54,27.66479]
[1641662623978,5.73031399,139.61,139.51,93.56469]
[1641662624178,7.52131399,139.61,139.51,91.77369]
[1641662624578,5.73031399,139.61,139.51,91.77369]
[1641662624978,5.73031399,139.61,139.51,95.77369]
[1641662625178,5.73031399,139.61,139.54,27.66479]
[1641662625578,29.45579,139.63,139.54,27.66479]
[1641662625780,27.66479,139.63,139.54,27.66479]
[1641662625980,5.73072767,139.6,139.54,27.66479]
[1641662626681,1.791,139.62,139.54,27.66479]
[1641662626882,29.45579,139.63,139.54,27.66479]
[1641662627081,27.66479,139.63,139.54,27.66479]
[1641662627685,27.66479,139.63,139.54,31.66479]
[1641662628087,27.66479,139.63,139.54,27.66479]
[1641662628791,5.73033227,139.61,139.54,27.66479]
[1641662628988,5.7315799,139.58,139.54,27.66479]
[1641662629193,5.7315799,139.58,139.51,91.77369]
[1641662629390,5.7315799,139.58,139.51,27.66479]
[1641662629790,1.791,139.6,139.51,27.66479]
[1641662629991,10.87630996,139.61,139.51,27.66479]
[1641662630190,5.73154259,139.58,139.51,27.66479]
[1641662633791,5.73238478,139.56,139.49,97.29149]
[1641662633992,1.791,139.55,139.48,65.4129]
[1641662634195,5.73362074,139.53,139.46,64.4282]
[1641662634393,5.73362074,139.53,139.44,66.1029]
[1641662634997,9.73362074,139.53,139.44,66.1029]
[1641662635197,33.39874659,139.52,139.44,66.1029]
[1641662635397,5.73516562,139.5,139.44,66.1029]
[1641662635596,5.73516562,139.5,139.42,159.63599]
[1641662635796,1.792,139.49,139.42,93.06749]
[1641662635996,5.73594805,139.48,139.42,93.06749]
[1641662636196,5.73594805,139.48,139.42,27.66479]
[1641662636396,1.792,139.5,139.42,27.66479]
[1641662636596,6.88058056,139.53,139.42,27.66479]
[1641662637699,6.88058056,139.53,139.42,31.66479]
[1641662638505,6.88058056,139.53,139.42,27.66479]
[1641662639506,5.73474614,139.51,139.42,27.66479]
[1641662639905,5.73556328,139.49,139.41,9.94228674]
[1641662640106,9.73556328,139.49,139.41,9.94228674]
[1641662640508,5.73556328,139.49,139.4,96.92649]
[1641662640708,5.73556328,139.49,139.42,4.0]
[1641662641007,6.88151861,139.51,139.41,4.0]
[1641662641209,6.88151861,139.51,139.42,4.0]
[1641662641407,6.88151861,139.51,139.45,27.66479]
[1641662642208,1.792,139.55,139.45,27.66479]
[1641662642406,5.7332862,139.54,139.45,27.66479]
[1641662643108,5.73357165,139.53,139.41,7.17077193]
[1641662643310,5.73523043,139.49,139.4,137.37461055]
[1641662643711,5.73608583,139.47,139.4,137.37461055]
[1641662643909,5.73608583,139.47,139.4,96.92649]
[1641662645212,6.88071009,139.53,139.43,4.0]
[1641662645213,1.792,139.51,139.43,4.0]
[1641662645414,6.88071009,139.53,139.44,27.66479]
[1641662647514,6.88071009,139.53,139.47,27.66479]
[1641662648014,13.30810143,139.55,139.47,27.66479]
[1641662648213,5.05293111,139.56,139.47,38.83247806]
[1641662648417,5.05293111,139.56,139.48,4.0]
[1641662648614,5.05293111,139.56,139.47,34.83247806]
[1641662649119,10.78435687,139.59,139.47,49.99430754]
[1641662649316,1.791,139.58,139.47,49.99430754]
[1641662649518,40.24014687,139.59,139.47,77.65909754]
[1641662650022,44.24014687,139.59,139.47,77.65909754]
[1641662650420,40.24014687,139.59,139.47,77.65909754]
[1641662650618,5.05293111,139.58,139.47,77.65909754]
[1641662651419,9.73215234,139.57,139.47,77.65909754]
[1641662651619,18.40145952,139.57,139.47,70.49140948]
[1641662651818,4.0,139.52,139.47,15.16182948]
[1641662652018,5.73664568,139.46,139.43,40.44812055]
[1641662653019,11.52697466,139.5,139.43,40.44812055]
[1641662653219,9.73497466,139.5,139.43,40.44812055]
[1641662653519,27.66479,139.48,139.43,40.44812055]
[1641662653921,27.66479,139.48,139.41,27.66479]
[1641662654321,42.45269577,139.5,139.41,27.66479]
[1641662654721,38.45269577,139.5,139.41,27.66479]
[1641662655722,10.78790577,139.5,139.41,27.66479]
[1641662655922,5.05293111,139.51,139.41,34.83556193]
[1641662656122,5.05293111,139.51,139.41,36.62756193]
[1641662656523,5.05293111,139.51,139.43,4.0]
[1641662656722,5.05293111,139.51,139.42,4.0]
[1641662656922,5.05293111,139.52,139.42,4.0]
[1641662657121,5.05293111,139.52,139.43,4.0]
[1641662657626,5.05293111,139.52,139.47,27.66479]
[1641662657822,5.05293111,139.54,139.47,27.66479]
[1641662659824,5.05293111,139.54,139.44,69.4615]
[1641662660024,11.52585096,139.53,139.44,69.4615]
[1641662660424,5.05293111,139.51,139.44,69.4615]
[1641662661328,5.73484124,139.5,139.44,69.4615]
[1641662661530,10.78777235,139.5,139.44,69.4615]
[1641662661728,10.78777235,139.5,139.43,133.4401]
[1641662662029,10.78789682,139.5,139.43,133.4401]
[1641662662229,10.78789682,139.5,139.43,69.2257]
[1641662662430,10.78789682,139.5,139.44,2.34084267]
[1641662662931,5.73596691,139.48,139.44,2.34084267]
[1641662663330,5.73596691,139.48,139.42,2.34084267]
[1641662663731,5.73596691,139.48,139.42,30.00563267]
[1641662663932,5.05293111,139.49,139.42,37.17563339]
[1641662664133,5.05293111,139.49,139.42,34.83479072]
[1641662664331,5.05293111,139.49,139.42,38.83479072]
[1641662664533,5.05293111,139.49,139.44,4.0]
[1641662664734,5.05293111,139.49,139.45,4.0]
[1641662664933,5.07045573,139.53,139.48,4.0]
[1641662665133,40.44812055,139.59,139.5,11.16614712]
[1641662665732,40.44812055,139.59,139.56,27.66479]
[1641662666334,11.94603922,139.63,139.56,27.66479]
[1641662666534,10.15503922,139.63,139.56,27.66479]
[1641662666833,14.15503922,139.63,139.54,27.66479]
[1641662667034,5.730171,139.62,139.51,2.34084267]
[1641662667233,1.791,139.61,139.49,8.95766069]
[1641662667433,1.791,139.61,139.5,7.16589036]
[1641662667834,1.791,139.61,139.53,27.66479]
[1641662668036,5.730171,139.62,139.53,27.66479]
[1641662668235,2.5410209,139.6,139.53,27.66479]
[1641662668434,2.5410209,139.6,139.55,4.0]
[1641662668635,2.5410209,139.6,139.53,101.62339]
[1641662668835,2.5410209,139.6,139.53,108.78774019]
[1641662669037,2.5410209,139.64,139.53,108.78774019]
[1641662669237,2.5410209,139.64,139.53,104.78774019]
[1641662669438,2.5410209,139.64,139.54,4.0]
[1641662669838,2.5410209,139.64,139.53,108.78774019]
[1641662670645,18.80564008,139.66,139.55,2.51951386]
[1641662670646,2.5410209,139.65,139.55,2.51951386]
[1641662671442,2.5410209,139.65,139.53,104.78774019]
[1641662671841,2.5410209,139.65,139.59,4.0]
[1641662672141,2.5410209,139.65,139.63,4.0]
[1641662672340,129.44812055,139.7,139.61,4.0]
[1641662672540,129.44812055,139.7,139.63,11.15947736]
[1641662672739,40.44812055,139.7,139.63,7.15947736]
[1641662673144,40.44812055,139.7,139.65,7.15845234]
[1641662673548,5.72512089,139.74,139.65,7.15845234]
[1641662673749,5.72512089,139.74,139.67,27.66479]
[1641662673945,1.789,139.76,139.67,27.66479]
[1641662674144,40.44812055,139.77,139.67,40.61096149]
[1641662674347,40.44812055,139.77,139.7,7.15589109]
[1641662674747,7.51136466,139.81,139.7,7.15589109]
[1641662675147,20.33549552,139.8,139.7,7.15589109]
[1641662675848,20.33549552,139.8,139.7,31.66479]
[1641662676048,5.72236466,139.81,139.72,7.15461115]
[1641662676254,1.788,139.83,139.72,7.15461115]
[1641662676448,9.98658732,139.84,139.75,7.15333166]
[1641662676648,1.788,139.86,139.75,7.15333166]